fUSD/lending_fUSD_20240104
["ID","MTS","AMOUNT","RATE_DAILY","PERIOD"]
[310147118,1704383504304,-1990.12,0.00034794,2]
[310147119,1704383504314,-603.95,0.00034794,2]
[310147120,1704383504325,-1219.74,0.00034794,2]
[310147121,1704383504335,-500.0,0.00034794,2]
[310147122,1704383504346,-500.0,0.00034794,2]
[310147123,1704383504356,-500.0,0.00034794,2]
[310147124,1704383504367,-500.0,0.00034794,2]
[310147125,1704383504377,-1670.1,0.00034794,2]
[310147126,1704383504388,-912.27,0.00034794,2]
[310147127,1704383504401,-500.0,0.00034794,2]
[310147128,1704383504411,-500.0,0.00034794,2]
[310147129,1704383504421,-500.0,0.00034794,2]
[310147130,1704383504431,-1474.82,0.00034794,2]
[310147131,1704383504441,-880.31,0.00034794,2]
[310147132,1704383504451,-500.0,0.00034794,2]
[310147133,1704383504461,-958.09,0.00034794,2]
[310147134,1704383504471,-1366.5,0.00034794,2]
[310147135,1704383504482,-500.0,0.00034794,2]
[310147136,1704383504492,-639.49,0.00034794,2]
[310147137,1704383504503,-574.97,0.00034794,2]
[310147138,1704383504513,-937.71,0.00034794,2]
[310147139,1704383504523,-500.0,0.00034794,2]
[310147140,1704383504533,-633.81,0.00034794,2]
[310147141,1704383504544,-937.76,0.00034794,2]
[310147142,1704383504555,-702.39,0.00034794,2]
[310147143,1704383504565,-500.0,0.00034794,2]
[310147144,1704383504575,-865.04,0.00034794,2]
[310147145,1704383504585,-636.93,0.00034794,2]
[310147146,1704383504595,-819.06,0.00034794,2]
[310147147,1704383504605,-500.0,0.00034794,2]
[310147148,1704383504616,-500.0,0.00034794,2]
[310147149,1704383504626,-1417.4,0.00034794,2]
[310147150,1704383504637,-547.45124211,0.00034794,2]
[310147151,1704383504647,-500.0,0.00034794,2]
[310147152,1704383504658,-2014.53,0.00034794,2]
[310147153,1704383504668,-542.64,0.00034794,2]
[310147154,1704383504678,-876.9,0.00034794,2]
[310147155,1704383504688,-500.0,0.00034794,2]
[310147156,1704383504697,-500.0,0.00034794,2]
[310147157,1704383504707,-500.0,0.00034794,2]
[310147158,1704383504717,-572.05,0.00034794,2]
[310147159,1704383504727,-1000.0,0.00034794,2]
[310147160,1704383504737,-500.0,0.00034794,2]
[310147161,1704383504747,-1205.37,0.00034794,2]
[310147162,1704383504757,-500.0,0.00034794,2]
[310147163,1704383504767,-500.0,0.00034794,2]
[310147164,1704383504777,-674.61,0.00034794,2]
[310147165,1704383504787,-1957.4,0.00034794,2]
[310147166,1704383504797,-500.0,0.00034794,2]
[310147167,1704383504807,-695.0,0.00034794,2]
[310147168,1704383504817,-500.0,0.00034794,2]
[310147169,1704383504827,-500.0,0.00034794,2]
[310147170,1704383504839,-803.55,0.00034794,2]
[310147171,1704383504851,-500.0,0.00034794,2]
[310147172,1704383504861,-882.03,0.00034794,2]
[310147173,1704383504871,-815.47,0.00034794,2]
[310147174,1704383504881,-389.62,0.00034794,2]
[310147175,1704383504891,-500.0,0.00034794,2]
[310147176,1704383504903,-500.0,0.00034794,2]
[310147177,1704383504914,-1914.74,0.00034794,2]
[310147178,1704383504926,-500.0,0.00034794,2]
[310147179,1704383505159,-500.0,0.00034794,2]
[310147180,1704383505200,-574.34,0.00034794,2]
[310147181,1704383505210,-500.0,0.00034794,2]
[310147182,1704383505219,-500.0,0.00034794,2]
[310147183,1704383505229,-944.72,0.00034794,2]
[310147184,1704383505239,-500.0,0.00034794,2]
[310147185,1704383505250,-982.79,0.00034794,2]
[310147186,1704383505259,-500.0,0.00034794,2]
[310147187,1704383505270,-500.0,0.00034794,2]
[310147188,1704383505280,-804.81,0.00034794,2]
[310147189,1704383505289,-500.0,0.00034794,2]
[310147190,1704383505301,-1565.08,0.00034794,2]
[310147191,1704383505310,-959.87,0.00034794,2]
[310147192,1704383505320,-500.0,0.00034794,2]
[310147193,1704383505331,-700.63,0.00034794,2]
[310147194,1704383505340,-744.98,0.00034794,2]
[310147195,1704383505350,-500.0,0.00034794,2]
[310147196,1704383505361,-885.49,0.00034794,2]
[310147197,1704383505371,-500.0,0.00034794,2]
[310147198,1704383505381,-500.0,0.00034794,2]
[310147199,1704383505391,-1410.46,0.00034794,2]
[310147200,1704383505401,-500.0,0.00034794,2]
[310147201,1704383505412,-500.0,0.00034794,2]
[310147202,1704383505423,-500.0,0.00034794,2]
[310147203,1704383505433,-500.0,0.00034794,2]
[310147204,1704383505444,-180.05,0.00034794,2]
[310147205,1704383505454,-957.51,0.00034794,2]
[310147206,1704383505464,-699.39,0.00034794,2]
[310147207,1704383505475,-500.0,0.00034794,2]
[310147208,1704383505484,-500.0,0.00034794,2]
[310147209,1704383505494,-1991.4,0.00034794,2]
[310147210,1704383505504,-500.0,0.00034794,2]
[310147211,1704383505513,-500.0,0.00034794,2]
[310147212,1704383505522,-500.0,0.00034794,2]
[310147213,1704383505531,-500.0,0.00034794,2]
[310147214,1704383505542,-2780.73,0.00034794,2]
[310147215,1704383505551,-500.0,0.00034794,2]
[310147216,1704383505561,-564.47,0.00034794,2]
[310147217,1704383505571,-500.0,0.00034794,2]
[310147218,1704383505581,-1394.86,0.00034794,2]
[310147219,1704383505590,-1775.83,0.00034794,2]
[310147220,1704383505600,-500.0,0.00034794,2]
[310147221,1704383505610,-500.0,0.00034794,2]
[310147222,1704383505619,-652.78,0.00034794,2]
[310147223,1704383505630,-500.0,0.00034794,2]
[310147224,1704383505640,-619.2,0.00034794,2]
[310147225,1704383505649,-1405.72,0.00034794,2]
[310147226,1704383505660,-500.0,0.00034794,2]
[310147227,1704383505669,-532.25454018,0.00034794,2]
[310147228,1704383505679,-597.63,0.00034794,2]
[310147229,1704383505689,-1124.88,0.00034794,2]
[310147230,1704383505699,-500.0,0.00034794,2]
[310147231,1704383505709,-1115.87,0.00034794,2]
[310147232,1704383505718,-1054.91,0.00034794,2]
[310147233,1704383505727,-524.05,0.00034794,2]
[310147234,1704383505737,-500.0,0.00034794,2]
[310147235,1704383505747,-559.91,0.00034794,2]
[310147236,1704383505756,-500.0,0.00034794,2]
[310147237,1704383505765,-564.33,0.00034794,2]
[310147238,1704383505774,-685.63,0.00034794,2]
[310147239,1704383505784,-1086.48,0.00034794,2]
[310147240,1704383505795,-950.11,0.00034794,2]
[310147241,1704383505804,-500.0,0.00034794,2]
[310147242,1704383505814,-500.0,0.00034794,2]
[310147243,1704383505824,-944.61,0.00034794,2]
[310147244,1704383505834,-1757.32,0.00034794,2]
[310147245,1704383505849,-2621.71,0.00034794,2]
[310147246,1704383505858,-500.0,0.00034794,2]
[310147247,1704383505869,-1401.22,0.00034794,2]
[310147248,1704383505879,-500.0,0.00034794,2]
[310147249,1704383505888,-500.0,0.00034794,2]
[310147250,1704383505903,-500.0,0.00034794,2]
[310147251,1704383505912,-1732.27,0.00034794,2]
[310147252,1704383505922,-639.42,0.00034794,2]
[310147253,1704383505933,-1256.69,0.00034794,2]
[310147254,1704383505942,-1094.07,0.00034794,2]
[310147255,1704383505952,-500.0,0.00034794,2]
[310147256,1704383505962,-500.0,0.00034794,2]
[310147257,1704383505979,-1570.56,0.00034794,2]
[310147258,1704383505989,-739.39,0.00034794,2]
[310147259,1704383505998,-500.0,0.00034794,2]
[310147260,1704383506008,-529.45,0.00034794,2]
[310147261,1704383506018,-1294.14,0.00034794,2]
[310147262,1704383506028,-1059.98,0.00034794,2]
[310147263,1704383506038,-460.42481043,0.00034794,2]
[310147264,1704383506051,-574.31,0.00034794,2]
[310147265,1704383506061,-500.0,0.00034794,2]
[310147266,1704383506071,-1661.09,0.00034794,2]
[310147267,1704383506081,-500.0,0.00034794,2]
[310147268,1704383506091,-1488.44,0.00034794,2]
[310147269,1704383506101,-582.97,0.00034794,2]
[310147270,1704383506111,-576.77,0.00034794,2]
[310147271,1704383506120,-500.0,0.00034794,2]
[310147272,1704383506130,-879.94,0.00034794,2]
[310147273,1704383506142,-500.0,0.00034794,2]
[310147274,1704383506160,-539.04,0.00034794,2]
[310147275,1704383506170,-1530.35,0.00034794,2]
[310147276,1704383506179,-1484.45,0.00034794,2]
[310147277,1704383506188,-500.0,0.00034794,2]
[310147278,1704383506198,-512.24,0.00034794,2]
[310147279,1704383506208,-1403.56,0.00034794,2]
[310147280,1704383506217,-545.95,0.00034794,2]
[310147281,1704383506226,-611.8,0.00034794,2]
[310147282,1704383506236,-601.29,0.00034794,2]
[310147283,1704383506245,-630.38,0.00034794,2]
[310147284,1704383506255,-2049.38,0.00034794,2]
[310147285,1704383506265,-1841.82,0.00034794,2]
[310147286,1704383506275,-500.0,0.00034794,2]
[310147287,1704383506285,-500.0,0.00034794,2]
[310147288,1704383506294,-1046.26,0.00034794,2]
[310147289,1704383506304,-951.22,0.00034794,2]
[310147290,1704383506313,-1497.34,0.00034794,2]
[310147291,1704383506323,-735.25,0.00034794,2]
[310147292,1704383506332,-527.14,0.00034794,2]
[310147293,1704383506342,-1733.0,0.00034794,2]
[310147294,1704383506351,-643.52,0.00034794,2]
[310147295,1704383506360,-822.39,0.00034794,2]
[310147296,1704383506370,-500.0,0.00034794,2]
[310147297,1704383506380,-500.0,0.00034794,2]
[310147298,1704383506389,-2670.57,0.00034794,2]
[310147299,1704383506398,-500.0,0.00034794,2]
[310147300,1704383506410,-500.0,0.00034794,2]
[310147301,1704383506419,-3284.99,0.00034794,2]
[310147302,1704383506429,-1166.26,0.00034794,2]
[310147303,1704383506439,-971.98,0.00034794,2]
[310147304,1704383506449,-500.0,0.00034794,2]
[310147305,1704383506459,-1694.73,0.00034794,2]
[310147306,1704383506468,-685.61,0.00034794,2]
[310147307,1704383506478,-500.0,0.00034794,2]
[310147308,1704383506488,-419.51772538,0.00034794,2]
[310147309,1704383506498,-2075.81,0.00034794,2]
[310147310,1704383506508,-1125.46,0.00034794,2]
[310147311,1704383506517,-526.4,0.00034794,2]
[310147312,1704383506527,-1396.04,0.00034794,2]
[310147313,1704383506536,-500.0,0.00034794,2]
[310147314,1704383506546,-1060.35,0.00034794,2]
[310147315,1704383506555,-540.44,0.00034794,2]
[310147316,1704383506565,-3215.96,0.00034794,2]
[310147317,1704383506578,-500.0,0.00034794,2]
[310147318,1704383506588,-781.26,0.00034794,2]
[310147319,1704383506598,-1237.67,0.00034794,2]
[310147320,1704383506608,-500.0,0.00034794,2]
[310147321,1704383506617,-558.12,0.00034794,2]
[310147322,1704383506627,-1191.58,0.00034794,2]
[310147323,1704383506637,-525.09,0.00034794,2]
[310147324,1704383506646,-1747.39,0.00034794,2]
[310147325,1704383506656,-1747.57,0.00034794,2]
[310147326,1704383506666,-500.0,0.00034794,2]
[310147327,1704383506676,-4274.46,0.00034794,2]
[310147328,1704383506686,-2793.34,0.00034794,2]
[310147329,1704383506696,-181.56,0.00034794,2]
[310147330,1704383506706,-973.72,0.00034794,2]
[310147331,1704383506716,-1118.87,0.00034794,2]
[310147332,1704383506726,-684.1,0.00034794,2]
[310147333,1704383506736,-500.0,0.00034794,2]
[310147334,1704383506746,-500.0,0.00034794,2]
[310147335,1704383506756,-521.83,0.00034794,2]
[310147336,1704383506766,-500.0,0.00034794,2]
[310147337,1704383506776,-676.82,0.00034794,2]
[310147338,1704383506786,-500.0,0.00034794,2]
[310147339,1704383506796,-2388.72,0.00034794,2]
[310147340,1704383506805,-1361.8,0.00034794,2]
[310147341,1704383506815,-500.0,0.00034794,2]
[310147342,1704383506825,-500.0,0.00034794,2]
[310147343,1704383506835,-998.02,0.00034794,2]
[310147344,1704383506849,-500.0,0.00034794,2]
[310147345,1704383506859,-699.11,0.00034794,2]
[310147346,1704383506868,-500.0,0.00034794,2]
[310147347,1704383506879,-522.55,0.00034794,2]
[310147348,1704383506888,-841.57,0.00034794,2]
[310147349,1704383506898,-2977.6,0.00034794,2]
[310147350,1704383506910,-658.31,0.00034794,2]
[310147351,1704383506919,-612.09,0.00034794,2]
[310147352,1704383506930,-1411.68,0.00034794,2]
[310147353,1704383506940,-998.22,0.00034794,2]
[310147354,1704383506950,-1262.99,0.00034794,2]
[310147355,1704383506960,-4333.35,0.00034794,2]
[310147356,1704383506970,-500.0,0.00034794,2]
[310147357,1704383506980,-550.75,0.00034794,2]
[310147358,1704383506991,-706.18,0.00034794,2]
[310147359,1704383507001,-667.37,0.00034794,2]
[310147360,1704383507011,-500.0,0.00034794,2]
[310147361,1704383507022,-3014.21,0.00034794,2]
[310147362,1704383507033,-1018.2,0.00034794,2]
[310147363,1704383507044,-693.16,0.00034794,2]
[310147364,1704383507057,-1362.23,0.00034794,2]
[310147365,1704383507067,-2995.33,0.00034794,2]
[310147366,1704383507078,-500.0,0.00034794,2]
[310147367,1704383507087,-597.48,0.00034794,2]
[310147368,1704383507098,-269.8161848,0.00034794,2]
[310147369,1704383507108,-1324.64,0.00034794,2]
[310147370,1704383507118,-816.81,0.00034794,2]
[310147371,1704383507129,-500.0,0.00034794,2]
[310147372,1704383507139,-599.52,0.00034794,2]
[310147373,1704383507149,-500.0,0.00034794,2]
[310147374,1704383507160,-1309.57,0.00034794,2]
[310147375,1704383507170,-854.33,0.00034794,2]
[310147376,1704383507181,-555.41,0.00034794,2]
[310147377,1704383507192,-500.0,0.00034794,2]
[310147378,1704383507202,-1030.82,0.00034794,2]
[310147379,1704383507212,-1268.47,0.00034794,2]
[310147380,1704383507222,-8961.73,0.00034794,2]
[310147381,1704383507233,-1547.75,0.00034794,2]
[310147382,1704383507243,-832.48,0.00034794,2]
[310147383,1704383507253,-2868.4,0.00034794,2]
[310147384,1704383507264,-500.0,0.00034794,2]
[310147385,1704383507275,-500.0,0.00034794,2]
[310147386,1704383507285,-1262.46,0.00034794,2]
[310147387,1704383507297,-500.0,0.00034794,2]
[310147388,1704383507307,-500.0,0.00034794,2]
[310147389,1704383507318,-593.34,0.00034794,2]
[310147390,1704383507328,-6572.59,0.00034794,2]
[310147391,1704383507338,-569.73,0.00034794,2]
[310147392,1704383507349,-4284.47,0.00034794,2]
[310147393,1704383507360,-918.99,0.00034794,2]
[310147394,1704383507370,-11824.09,0.00034794,2]
[310147395,1704383507381,-500.0,0.00034794,2]
[310147396,1704383507390,-1528.9,0.00034794,2]
[310147397,1704383507400,-839.12,0.00034794,2]
[310147398,1704383507413,-626.51,0.00034794,2]
[310147399,1704383507422,-815.35,0.00034794,2]
[310147400,1704383507432,-722.14,0.00034794,2]
[310147401,1704383507442,-1946.58,0.00034794,2]
[310147402,1704383507452,-512.9,0.00034794,2]
[310147403,1704383507461,-988.65,0.00034794,2]
[310147404,1704383507471,-25969.53,0.00034794,2]
[310147405,1704383507481,-2402.27,0.00034794,2]
[310147406,1704383507491,-500.0,0.00034794,2]
[310147407,1704383507501,-2320.41,0.00034794,2]
[310147408,1704383507510,-500.0,0.00034794,2]
[310147409,1704383507520,-631.59,0.00034794,2]
[310147410,1704383507530,-871.23,0.00034794,2]
[310147411,1704383507541,-1013.95,0.00034794,2]
[310147412,1704383507551,-14205.53,0.00034794,2]
[310147413,1704383507561,-1593.12,0.00034794,2]
[310147414,1704383507571,-835.86,0.00034794,2]
[310147415,1704383507580,-500.0,0.00034794,2]
[310147416,1704383507590,-586.95,0.00034794,2]
[310147417,1704383507604,-1058.98,0.00034794,2]
[310147418,1704383507613,-1333.9,0.00034794,2]
[310147419,1704383507623,-500.0,0.00034794,2]
[310147420,1704383507633,-1481.66,0.00034794,2]
[310147421,1704383507643,-684.9,0.00034794,2]
[310147422,1704383507657,-10274.33,0.00034794,2]
[310147423,1704383507675,-1140.38,0.00034794,2]
[310147424,1704383507691,-500.0,0.00034794,2]
[310147425,1704383507704,-596.7,0.00034794,2]
[310147426,1704383507719,-500.0,0.00034794,2]
[310147427,1704383507735,-5311.22,0.00034794,2]
[310147428,1704383507752,-1489.0,0.00034794,2]
[310147429,1704383507767,-500.0,0.00034794,2]
[310147430,1704383507779,-1020.8,0.00034794,2]
[310147431,1704383507794,-708.19,0.00034794,2]
[310147432,1704383507809,-1641.33,0.00034794,2]
[310147433,1704383507822,-1563.54,0.00034794,2]
[310147434,1704383507839,-500.0,0.00034794,2]
[310147435,1704383507853,-4689.3,0.00034794,2]
[310147436,1704383507868,-3501.75,0.00034794,2]
[310147437,1704383507881,-581.11,0.00034794,2]
[310147438,1704383507896,-917.4,0.00034794,2]
[310147439,1704383507912,-500.0,0.00034794,2]
[310147440,1704383507925,-1132.36,0.00034794,2]
[310147441,1704383507941,-1520.64,0.00034794,2]
[310147442,1704383507957,-1821.71,0.00034794,2]
[310147443,1704383507972,-611.97,0.00034794,2]
[310147444,1704383507984,-980.64,0.00034794,2]
[310147445,1704383507995,-911.8,0.00034794,2]
[310147446,1704383508008,-512.76,0.00034794,2]
[310147447,1704383508021,-500.0,0.00034794,2]
[310147448,1704383508035,-500.0,0.00034794,2]
[310147449,1704383508052,-611.41,0.00034794,2]
[310147450,1704383508065,-3660.07,0.00034794,2]
[310147451,1704383508077,-758.21,0.00034794,2]
[310147452,1704383508093,-4379.2,0.00034794,2]
[310147453,1704383508106,-741.69,0.00034794,2]
[310147454,1704383508119,-1104.09,0.00034794,2]
[310147455,1704383508133,-151.30394955,0.00034794,2]
[310147456,1704383508146,-2326.77,0.00034794,2]
[310147457,1704383508160,-500.0,0.00034794,2]
[310147458,1704383508173,-1962.91,0.00034794,2]
[310147459,1704383508187,-1792.29,0.00034794,2]
[310147460,1704383508199,-20208.69,0.00034794,2]
[310147461,1704383508211,-500.0,0.00034794,2]
[310147462,1704383508223,-500.0,0.00034794,2]
[310147463,1704383508236,-765.42,0.00034794,2]
[310147464,1704383508248,-3848.58,0.00034794,2]
[310147465,1704383508260,-2574.21,0.00034794,2]
[310147466,1704383508273,-879.94,0.00034794,2]
[310147467,1704383508286,-764.06,0.00034794,2]
[310147468,1704383508297,-500.0,0.00034794,2]
[310147469,1704383508309,-2186.2,0.00034794,2]
[310147470,1704383508321,-500.0,0.00034794,2]
[310147471,1704383508333,-8578.01,0.00034794,2]
[310147472,1704383508346,-706.9,0.00034794,2]
[310147473,1704383508358,-500.0,0.00034794,2]
[310147474,1704383508371,-4800.61157116,0.00034794,2]
[310147475,1704383509200,-1958.41842884,0.00034794,2]
[310147476,1704383509211,-500.0,0.00034794,2]
[310147477,1704383509222,-2234.12,0.00034794,2]
[310147478,1704383509234,-1367.02,0.00034794,2]
[310147479,1704383509246,-7989.34,0.00034794,2]
[310147480,1704383509257,-571.79,0.00034794,2]
[310147481,1704383509268,-886.97,0.00034794,2]
[310147482,1704383509280,-1134.35,0.00034794,2]
[310147483,1704383509291,-582.52,0.00034794,2]
[310147484,1704383509302,-3268.96,0.00034794,2]
[310147485,1704383509313,-1409.66,0.00034794,2]
[310147486,1704383509324,-5952.87,0.00034794,2]
[310147487,1704383509335,-1108.08,0.00034794,2]
[310147488,1704383509347,-617.19,0.00034794,2]
[310147489,1704383509359,-323.1017798,0.00034794,2]
[310147490,1704383509369,-734.31,0.00034794,2]
[310147491,1704383509380,-1176.29,0.00034794,2]
[310147492,1704383509392,-500.0,0.00034794,2]
[310147493,1704383509403,-593.47,0.00034794,2]
[310147494,1704383509415,-3760.93,0.00034794,2]
[310147495,1704383509426,-500.0,0.00034794,2]
[310147496,1704383509437,-2563.17,0.00034794,2]
[310147497,1704383509449,-648.96,0.00034794,2]
[310147498,1704383509461,-735.99,0.00034794,2]
[310147499,1704383509472,-727.54,0.00034794,2]
[310147500,1704383509483,-912.37,0.00034794,2]
[310147501,1704383509494,-1710.93,0.00034794,2]
[310147502,1704383509506,-797.16,0.00034794,2]
[310147503,1704383509517,-500.0,0.00034794,2]
[310147504,1704383509528,-500.0,0.00034794,2]
[310147505,1704383509539,-1782.07,0.00034794,2]
[310147506,1704383509551,-3505.81,0.00034794,2]
[310147507,1704383509562,-526.11,0.00034794,2]
[310147508,1704383509574,-6058.41,0.00034794,2]
[310147509,1704383509585,-1123.81,0.00034794,2]
[310147510,1704383509597,-743.76,0.00034794,2]
[310147511,1704383509608,-813.13,0.00034794,2]
[310147512,1704383509619,-500.0,0.00034794,2]
[310147513,1704383509630,-500.0,0.00034794,2]
[310147514,1704383509642,-1111.68,0.00034794,2]
[310147515,1704383509653,-633.13,0.00034794,2]
[310147516,1704383509665,-2411.49,0.00034794,2]
[310147517,1704383509676,-1980.1,0.00034794,2]
[310147518,1704383509688,-766.75,0.00034794,2]
[310147519,1704383509699,-711.0,0.00034794,2]
[310147520,1704383509712,-2763.55,0.00034794,2]
[310147521,1704383509724,-500.0,0.00034794,2]
[310147522,1704383509736,-500.0,0.00034794,2]
[310147523,1704383509751,-1787.6,0.00034794,2]
[310147524,1704383509763,-500.0,0.00034794,2]
[310147525,1704383509774,-500.0,0.00034794,2]
[310147526,1704383509784,-500.0,0.00034794,2]
[310147527,1704383509796,-1042.72,0.00034794,2]
[310147528,1704383509808,-1394.66,0.00034794,2]
[310147529,1704383509820,-786.66,0.00034794,2]
[310147530,1704383509832,-500.0,0.00034794,2]
[310147531,1704383509848,-739.91,0.00034794,2]
[310147532,1704383509859,-1209.47234723,0.00034794,2]
[310147533,1704383509900,-270.484,0.00034794,2]
[310147534,1704383509927,-631.14,0.00033908,2]
[310147535,1704383509938,-282.59365277,0.00034794,2]
[310147536,1704383509951,-500.0,0.00034794,2]
[310147537,1704383509966,-1801.4,0.00034794,2]
[310147538,1704383509978,-587.29,0.00034794,2]
[310147539,1704383509990,-641.43373873,0.00034794,2]
[310147540,1704383510889,-267.38,0.00032866,10]
[310147541,1704383510899,-779.16,0.00033698,2]
[310147542,1704383510911,-779.16,0.00033972,2]
[310147543,1704383510920,-631.14,0.00034182,2]
[310147544,1704383510931,-500.0,0.00034246,2]
[310147545,1704383510941,-779.16,0.00034246,2]
[310147546,1704383510951,-631.14,0.00034456,2]
[310147547,1704383510962,-759.67,0.0003452,2]
[310147548,1704383510972,-500.0,0.0003452,2]
[310147549,1704383510982,-500.0,0.0003452,2]
[310147550,1704383510992,-779.16,0.0003452,2]
[310147551,1704383511002,-631.14,0.0003473,2]
[310147552,1704383511012,-5800.0,0.00034759,2]
[310147553,1704383511023,-1465.50626127,0.00034794,2]
[310147554,1704383511034,-690.38,0.00034794,2]
[310147555,1704383511044,-6835.67,0.00034794,2]
[310147556,1704383511054,-500.0,0.00034794,2]
[310147557,1704383511065,-2355.23,0.00034794,2]
[310147558,1704383511074,-807.14,0.00034794,2]
[310147559,1704383511085,-666.61380041,0.00034794,2]
[310147560,1704383511199,-1099.92619959,0.00034794,2]
[310147561,1704383511209,-1485.08663553,0.00034794,2]
[310147562,1704383511239,-395.34336447,0.00034794,2]
[310147563,1704383511249,-500.0,0.00034794,2]
[310147564,1704383511259,-2893.14,0.00034794,2]
[310147565,1704383511270,-16165.61856453,0.00034794,2]
[310147566,1704383511282,-7565.35143547,0.00034794,2]
[310147567,1704383511292,-500.0,0.00034794,2]
[310147568,1704383511302,-10972.52,0.00034794,2]
[310147569,1704383511311,-9423.68,0.00034794,2]
[310147570,1704383511322,-553.51,0.00034794,2]
[310147571,1704383511332,-3799.42,0.00034794,2]
[310147572,1704383511341,-24318.36,0.00034794,2]
[310147573,1704383511351,-1932.66,0.00034794,2]
[310147574,1704383511361,-640.95,0.00034794,2]
[310147575,1704383511371,-3015.08,0.00034794,2]
[310147576,1704383511382,-1267.01,0.00034794,2]
[310147577,1704383511392,-1749.78,0.00034794,2]
[310147578,1704383511402,-500.0,0.00034794,2]
[310147579,1704383511414,-513.45,0.00034794,2]
[310147580,1704383511425,-1411.28,0.00034794,2]
[310147581,1704383511434,-517.41,0.00034794,2]
[310147582,1704383511444,-1062.95,0.00034794,2]
[310147583,1704383511454,-500.0,0.00034794,2]
[310147584,1704383511464,-500.0,0.00034794,2]
[310147585,1704383511474,-500.0,0.00034794,2]
[310147586,1704383511484,-3700.77,0.00034794,2]
[310147587,1704383511494,-727.7,0.00034794,2]
[310147588,1704383511503,-5126.0,0.00034794,2]
[310147589,1704383511514,-2283.61,0.00034794,2]
[310147590,1704383511526,-1211.88,0.00034794,2]
[310147591,1704383511536,-500.0,0.00034794,2]
[310147592,1704383511546,-1230.09,0.00034794,2]
[310147593,1704383511556,-1468.8,0.00034794,2]
[310147594,1704383511565,-3590.95,0.00034794,2]
[310147595,1704383511575,-1555.26,0.00034794,2]
[310147596,1704383511584,-3092.57,0.00034794,2]
[310147597,1704383511594,-4974.75,0.00034794,2]
[310147598,1704383511604,-500.0,0.00034794,2]
[310147599,1704383511614,-686.38,0.00034794,2]
[310147600,1704383511623,-2190.23,0.00034794,2]
[310147601,1704383511634,-2624.79,0.00034794,2]
[310147602,1704383511643,-3516.79,0.00034794,2]
[310147603,1704383511654,-500.0,0.00034794,2]
[310147604,1704383511665,-500.0,0.00034794,2]
[310147605,1704383511675,-500.0,0.00034794,2]
[310147606,1704383511685,-948.35,0.00034794,2]
[310147607,1704383511695,-500.0,0.00034794,2]
[310147608,1704383511706,-6437.83,0.00034794,2]
[310147609,1704383511716,-4606.86,0.00034794,2]
[310147610,1704383511726,-1067.46,0.00034794,2]
[310147611,1704383511737,-706.69,0.00034794,2]
[310147612,1704383511747,-541.5,0.00034794,2]
[310147613,1704383511757,-1535.74,0.00034794,2]
[310147614,1704383511767,-759.67,0.00034794,2]
[310147615,1704383511778,-500.0,0.00034794,2]
[310147616,1704383511789,-2597.4,0.00034794,2]
[310147617,1704383511799,-500.0,0.00034794,2]